fUST/lending_fUST_20250831
["ID","MTS","AMOUNT","RATE_DAILY","PERIOD"]
[382460860,1756635050977,-884.29,0.00018304,2]
[382460861,1756635050986,-480.0,0.00018304,2]
[382460862,1756635050996,-551.65,0.00018304,2]
[382460863,1756635051006,-480.0,0.00018304,2]
[382460864,1756635051015,-883.64,0.00018304,2]
[382460865,1756635051025,-1332.48,0.00018304,2]
[382460866,1756635051034,-549.71,0.00018304,2]
[382460867,1756635051043,-832.8,0.00018304,2]
[382460868,1756635051053,-826.34,0.00018304,2]
[382460869,1756635051063,-480.0,0.00018304,2]
[382460870,1756635051073,-1288.32,0.00018304,2]
[382460871,1756635051083,-500.0,0.00018304,2]
[382460872,1756635051094,-278.00664309,0.00018304,2]
[382460873,1756635051102,-1072.5,0.00018304,2]
[382460874,1756635051112,-480.0,0.00018304,2]
[382460875,1756635051122,-1303.88,0.00018304,2]
[382460876,1756635051132,-455.76588376,0.00018304,2]
[382460877,1756635051141,-480.0,0.00018304,2]
[382460884,1756635051150,-1282.96,0.00018304,2]
[382460887,1756635051289,-876.98,0.00018304,2]
[382460888,1756635051299,-1360.47,0.00018304,2]
[382460890,1756635051308,-480.0,0.00018304,2]
[382460892,1756635051318,-481.92102351,0.00018304,2]
[382460894,1756635051327,-965.67,0.00018304,2]
[382460896,1756635051336,-480.0,0.00018304,2]
[382460898,1756635051345,-1920.8,0.00018304,2]
[382460900,1756635051355,-592.57,0.00018304,2]
[382460902,1756635051364,-480.0,0.00018304,2]
[382460904,1756635051374,-495.7,0.00018304,2]
[382460906,1756635051384,-1672.77,0.00018304,2]
[382460908,1756635051393,-480.0,0.00018304,2]
[382460910,1756635051402,-480.0,0.00018304,2]
[382460912,1756635051411,-480.0,0.00018304,2]
[382460914,1756635051420,-913.73,0.00018304,2]
[382460916,1756635051429,-480.0,0.00018304,2]
[382460918,1756635051439,-480.0,0.00018304,2]
[382460920,1756635051448,-480.0,0.00018304,2]
[382460922,1756635051457,-298.80298951,0.00018304,2]
[382460924,1756635051466,-480.0,0.00018304,2]
[382460926,1756635051475,-1837.44,0.00018304,2]
[382460928,1756635051484,-480.0,0.00018304,2]
[382460930,1756635051493,-764.27,0.00018304,2]
[382460932,1756635051502,-480.0,0.00018304,2]
[382460934,1756635051512,-2136.9,0.00018304,2]
[382460936,1756635051521,-480.0,0.00018304,2]
[382460938,1756635051531,-480.0,0.00018304,2]
[382460940,1756635051540,-480.0,0.00018304,2]
[382460942,1756635051549,-665.04,0.00018304,2]
[382460944,1756635051558,-1707.87,0.00018304,2]
[382460946,1756635051567,-480.0,0.00018304,2]
[382460948,1756635051576,-480.0,0.00018304,2]
[382460949,1756635051585,-480.0,0.00018304,2]
[382460951,1756635051595,-480.0,0.00018304,2]
[382460953,1756635051604,-480.0,0.00018304,2]
[382460955,1756635051613,-1384.37,0.00018304,2]
[382460958,1756635051624,-576.54,0.00018304,2]
[382460960,1756635051634,-480.0,0.00018304,2]
[382460962,1756635051643,-480.0,0.00018304,2]
[382460964,1756635051652,-533.75,0.00018304,2]
[382460966,1756635051662,-480.0,0.00018304,2]
[382460968,1756635051671,-480.0,0.00018304,2]
[382460970,1756635051680,-601.79,0.00018304,2]
[382460972,1756635051690,-247.99788616,0.00018304,2]
[382460974,1756635051699,-480.0,0.00018304,2]
[382460976,1756635051708,-480.0,0.00018304,2]
[382460978,1756635051718,-480.0,0.00018304,2]
[382460980,1756635051727,-916.14,0.00018304,2]
[382460982,1756635051737,-729.36,0.00018304,2]
[382460984,1756635051746,-579.92,0.00018304,2]
[382460986,1756635051755,-480.0,0.00018304,2]
[382460988,1756635051764,-566.36,0.00018304,2]
[382460990,1756635051773,-480.0,0.00018304,2]
[382460992,1756635051783,-480.0,0.00018304,2]
[382460994,1756635051791,-480.0,0.00018304,2]
[382460996,1756635051801,-1007.45,0.00018304,2]
[382460998,1756635051810,-2564.45,0.00018304,2]
[382461000,1756635051819,-504.38854327,0.00018304,2]
[382461002,1756635051828,-1819.29,0.00018304,2]
[382461004,1756635051837,-480.0,0.00018304,2]
[382461006,1756635051846,-480.0,0.00018304,2]
[382461008,1756635051855,-935.01,0.00018304,2]
[382461010,1756635051865,-844.59,0.00018304,2]
[382461012,1756635051875,-2250.42,0.00018304,2]
[382461014,1756635051883,-480.0,0.00018304,2]
[382461016,1756635051893,-674.87,0.00018304,2]
[382461018,1756635051902,-500.0,0.00018304,2]
[382461020,1756635051911,-2946.04,0.00018304,2]
[382461022,1756635051920,-480.0,0.00018304,2]
[382461024,1756635051930,-1222.33,0.00018304,2]
[382461026,1756635051939,-480.0,0.00018304,2]
[382461028,1756635051948,-483.73,0.00018304,2]
[382461030,1756635051957,-480.0,0.00018304,2]
[382461031,1756635051966,-480.0,0.00018304,2]
[382461033,1756635051976,-1003.65,0.00018304,2]
[382461035,1756635051985,-480.0,0.00018304,2]
[382461037,1756635051995,-518.11,0.00018304,2]
[382461039,1756635052003,-480.0,0.00018304,2]
[382461041,1756635052012,-892.85,0.00018304,2]
[382461043,1756635052022,-480.0,0.00018304,2]
[382461045,1756635052031,-506.66,0.00018304,2]
[382461047,1756635052040,-543.35,0.00018304,2]
[382461049,1756635052049,-925.96,0.00018304,2]
[382461051,1756635052058,-1041.77,0.00018304,2]
[382461053,1756635052067,-480.0,0.00018304,2]
[382461055,1756635052076,-480.0,0.00018304,2]
[382461057,1756635052090,-599.79,0.00018304,2]
[382461059,1756635052099,-480.0,0.00018304,2]
[382461061,1756635052108,-1374.72,0.00018304,2]
[382461063,1756635052118,-778.0,0.00018304,2]
[382461065,1756635052127,-480.0,0.00018304,2]
[382461067,1756635052136,-485.31157402,0.00018304,2]
[382461069,1756635052146,-480.0,0.00018304,2]
[382461071,1756635052159,-480.0,0.00018304,2]
[382461073,1756635052168,-738.36,0.00018304,2]
[382461075,1756635052178,-949.6,0.00018304,2]
[382461077,1756635052187,-481.85753423,0.00018304,2]
[382461079,1756635052196,-768.31,0.00018304,2]
[382461081,1756635052205,-583.68,0.00018304,2]
[382461083,1756635052215,-480.0,0.00018304,2]
[382461085,1756635052224,-535.44,0.00018304,2]
[382461087,1756635052234,-512.56,0.00018304,2]
[382461089,1756635052244,-480.0,0.00018304,2]
[382461091,1756635052253,-480.0,0.00018304,2]
[382461093,1756635052262,-601.76,0.00018304,2]
[382461095,1756635052271,-155.96891171,0.00018304,2]
[382461097,1756635052280,-1940.32,0.00018304,2]
[382461099,1756635052289,-1550.12,0.00018304,2]
[382461101,1756635052299,-243.21,0.00018304,2]
[382461103,1756635052308,-480.0,0.00018304,2]
[382461105,1756635052318,-484.91050785,0.00018304,2]
[382461107,1756635052327,-570.35,0.00018304,2]
[382461109,1756635052337,-480.0,0.00018304,2]
[382461111,1756635052346,-480.0,0.00018304,2]
[382461113,1756635052355,-480.0,0.00018304,2]
[382461115,1756635052365,-480.0,0.00018304,2]
[382461117,1756635052374,-1225.05,0.00018304,2]
[382461119,1756635052384,-501.86,0.00018304,2]
[382461121,1756635052393,-1843.78,0.00018304,2]
[382461123,1756635052403,-480.0,0.00018304,2]
[382461125,1756635052412,-1513.89,0.00018304,2]
[382461127,1756635052421,-480.0,0.00018304,2]
[382461129,1756635052431,-1297.72,0.00018304,2]
[382461131,1756635052440,-480.0,0.00018304,2]
[382461133,1756635052449,-480.0,0.00018304,2]
[382461135,1756635052458,-480.0,0.00018304,2]
[382461137,1756635052467,-554.55,0.00018304,2]
[382461139,1756635052476,-1794.98,0.00018304,2]
[382461141,1756635052485,-1782.93,0.00018304,2]
[382461142,1756635052494,-480.0,0.00018304,2]
[382461143,1756635052503,-480.32030878,0.00018304,2]
[382461144,1756635052512,-480.0,0.00018304,2]
[382461145,1756635052521,-1959.04,0.00018304,2]
[382461146,1756635052530,-480.0,0.00018304,2]
[382461147,1756635052539,-1562.44,0.00018304,2]
[382461148,1756635052549,-480.0,0.00018304,2]
[382461149,1756635052558,-480.0,0.00018304,2]
[382461150,1756635052567,-413.3736342,0.00018304,2]
[382461151,1756635052577,-906.98,0.00018304,2]
[382461152,1756635052586,-480.0,0.00018304,2]
[382461153,1756635052595,-1572.18,0.00018304,2]
[382461155,1756635052604,-480.0,0.00018304,2]
[382461157,1756635052613,-480.0,0.00018304,2]
[382461159,1756635052624,-480.0,0.00018304,2]
[382461161,1756635052633,-650.9,0.00018304,2]
[382461163,1756635052642,-480.0,0.00018304,2]
[382461165,1756635052651,-858.19,0.00018304,2]
[382461167,1756635052659,-1869.57,0.00018304,2]
[382461169,1756635052669,-481.5065541,0.00018304,2]
[382461171,1756635052678,-645.38,0.00018304,2]
[382461173,1756635052687,-279.29495814,0.00018304,2]
[382461175,1756635052696,-2086.47,0.00018304,2]
[382461177,1756635052705,-12905.7,0.00018304,2]
[382461179,1756635052715,-480.0,0.00018304,2]
[382461181,1756635052724,-480.0,0.00018304,2]
[382461183,1756635052733,-812.35,0.00018304,2]
[382461185,1756635052743,-480.0,0.00018304,2]
[382461187,1756635052751,-1949.26,0.00018304,2]
[382461189,1756635052760,-481.9284001,0.00018304,2]
[382461191,1756635052770,-480.0,0.00018304,2]
[382461193,1756635052779,-1485.55,0.00018304,2]
[382461195,1756635052788,-480.0,0.00018304,2]
[382461197,1756635052798,-481.09469984,0.00018304,2]
[382461199,1756635052807,-480.0,0.00018304,2]
[382461201,1756635052816,-480.0,0.00018304,2]
[382461203,1756635052826,-480.0,0.00018304,2]
[382461205,1756635052835,-480.0,0.00018304,2]
[382461207,1756635052844,-1693.91,0.00018304,2]
[382461209,1756635052854,-7621.64,0.00018304,2]
[382461211,1756635052865,-480.0,0.00018304,2]
[382461213,1756635052875,-480.0,0.00018304,2]
[382461215,1756635052884,-500.0,0.00018306,2]
[382461217,1756635052893,-151.0,0.00018306,2]
[382461219,1756635052903,-239.35076144,0.00018306,2]
[382461221,1756635052911,-571.37089005,0.00018306,2]
[382461223,1756635052921,-198.0,0.00018306,2]
[382461225,1756635052930,-500.0,0.00018306,2]
[382461227,1756635052939,-151.0,0.00018306,2]
[382461229,1756635052949,-480.0,0.00018306,2]
[382461231,1756635052958,-480.0,0.00018306,2]
[382461233,1756635052968,-555.84,0.00018306,2]
[382461235,1756635052977,-186.55579662,0.00018306,2]
[382461237,1756635052986,-480.0,0.00018306,2]
[382461239,1756635052995,-410.49221079,0.00018306,2]
[382461241,1756635053005,-480.0,0.00018306,2]
[382461243,1756635053014,-480.0,0.00018306,2]
[382461245,1756635053022,-923.58,0.00018306,2]
[382461247,1756635053032,-721.32,0.00018306,2]
[382461249,1756635053041,-555.57,0.00018306,2]
[382461251,1756635053050,-480.0,0.00018306,2]
[382461253,1756635053059,-1455.08,0.00018306,2]
[382461255,1756635053069,-480.0,0.00018306,2]
[382461257,1756635053079,-638.49,0.00018306,2]
[382461259,1756635053091,-887.51,0.00018306,2]
[382461261,1756635053100,-847.23,0.00018306,2]
[382461263,1756635053109,-822.0,0.00018306,2]
[382461265,1756635053120,-1171.81,0.00018306,2]
[382461266,1756635053128,-480.0,0.00018306,2]
[382461268,1756635053138,-1569.43,0.00018306,2]
[382461270,1756635053148,-727.79,0.00018306,2]
[382461273,1756635053158,-567.43,0.00018306,2]
[382461275,1756635053167,-480.0,0.00018306,2]
[382461277,1756635053177,-1815.96,0.00018306,2]
[382461279,1756635053186,-480.0,0.00018306,2]
[382461281,1756635053198,-481.3470306,0.00018306,2]
[382461283,1756635053207,-1603.31,0.00018306,2]
[382461285,1756635053216,-740.8,0.00018306,2]
[382461287,1756635053224,-480.0,0.00018306,2]
[382461289,1756635053234,-1973.57,0.00018306,2]
[382461291,1756635053243,-590.8,0.00018306,2]
[382461293,1756635053252,-706.43,0.00018306,2]
[382461295,1756635053261,-480.0,0.00018306,2]
[382461297,1756635053271,-500.74,0.00018306,2]
[382461299,1756635053280,-1661.42,0.00018306,2]
[382461314,1756635053289,-260.86270022,0.00018306,2]
[382461316,1756635053422,-504.98,0.00018306,2]
[382461318,1756635053431,-2898.88,0.00018306,2]
[382461320,1756635053440,-1737.4,0.00018306,2]
[382461322,1756635053450,-930.35,0.00018306,2]
[382461324,1756635053459,-687.86189707,0.00018306,2]
[382461481,1756635055165,-126.31336952,0.00018021,2]
[382461517,1756635055684,-123.68663048,0.00018021,2]
[382461518,1756635055694,-127.94116386,0.00018021,2]
[382461650,1756635057261,1000.0,0.00017038,2]
[382461750,1756635058196,-5000.0,0.00017736,2]
[382461822,1756635058996,0.01,0.00017736,2]
[382461825,1756635059019,4999.99,0.00017736,2]
[382462067,1756635061448,-168.53722419,0.0001784,2]
[382462070,1756635061471,-34.47246763,0.00017931,2]
[382462322,1756635141851,10000.01,0.00017028,2]
[382462323,1756635141873,10000.01,0.00017028,2]
[382462324,1756635141899,10000.01,0.00017028,2]
[382462325,1756635141921,10000.01,0.00017028,2]
[382462326,1756635141944,10000.01,0.00017028,2]
[382462327,1756635141967,10000.01,0.00017028,2]
[382462328,1756635141988,10000.01,0.00017028,2]
[382462329,1756635142010,10000.01,0.00017028,2]
[382462330,1756635142035,10000.01,0.00017028,2]
[382462331,1756635142059,7003.71,0.00017028,2]
[382462332,1756635147486,971.9173401,0.00017165,2]
[382462333,1756635162645,177.6620218,0.00017001,2]
[382462334,1756635193034,-5000.0,0.00017751,2]
[382462335,1756635204535,0.01,0.0001783,2]
[382462336,1756635204559,947.33589908,0.0001783,2]
[382462337,1756635210545,5000.0,0.00017832,2]
[382462338,1756635232978,4052.67410092,0.00017832,2]
[382462339,1756635233000,947.32589908,0.00017832,2]
[382462340,1756635243454,300.0,0.00017831,2]
[382462341,1756635256316,5000.0,0.00017832,2]
[382462342,1756635259328,185.68294368,0.0001783,2]
[382462343,1756635272804,500.0,0.00017831,2]
[382462344,1756635272899,319.6569936,0.00017831,2]
[382462345,1756635274315,586.57513175,0.00017831,2]
[382462346,1756635274354,203.00969182,0.00017831,2]
[382462347,1756635274436,500.0,0.00017831,2]
[382462348,1756635274503,175.5278396,0.00017831,2]
[382462349,1756635279843,1282.23150047,0.00017832,2]
[382462350,1756635279867,3717.76849953,0.00017832,2]
[382462351,1756635296740,6282.24150047,0.00016989,2]
[382462352,1756635296764,10000.01,0.00016989,2]
[382462353,1756635296787,10000.01,0.00016989,2]
[382462354,1756635296809,10000.01,0.00016989,2]
[382462355,1756635296831,10000.01,0.00016989,2]
[382462356,1756635296858,10000.01,0.00016989,2]
[382462357,1756635296879,10000.01,0.00016989,2]
[382462358,1756635296902,10000.01,0.00016989,2]
[382462359,1756635296924,10000.01,0.00016989,2]
[382462360,1756635296947,6958.43800893,0.00016989,2]
[382462361,1756635302712,300.0,0.00017831,2]
[382462362,1756635302760,1200.0,0.00017831,2]
[382462363,1756635302908,300.0,0.00017831,2]
[382462364,1756635303096,300.0,0.00017831,2]
[382462365,1756635303193,300.0,0.00017831,2]
[382462366,1756635303558,641.57199107,0.00017832,2]
[382462367,1756635303596,-4358.42800893,0.00017832,2]
[382462368,1756635311901,5000.0,0.000175,2]
[382462369,1756635324443,229.80022398,0.00017831,2]
[382462370,1756635324472,500.0,0.00017831,2]
[382462371,1756635324506,476.58148007,0.00017831,2]
[382462372,1756635324533,500.0,0.00017831,2]
[382462373,1756635324562,500.0,0.00017831,2]
[382462374,1756635324591,500.0,0.00017831,2]
[382462375,1756635324628,500.0,0.00017831,2]
[382462376,1756635324658,271.26333909,0.00017831,2]
[382462377,1756635324691,500.0,0.00017831,2]
[382462378,1756635324720,500.0,0.00017831,2]
[382462379,1756635324755,500.0,0.00017831,2]
[382462380,1756635324784,500.0,0.00017831,2]
[382462381,1756635324811,500.0,0.00017831,2]
[382462382,1756635324839,500.0,0.00017831,2]
[382462383,1756635324867,500.0,0.00017831,2]
[382462384,1756635324900,500.0,0.00017831,2]
[382462385,1756635324928,500.0,0.00017831,2]
[382462386,1756635324964,500.0,0.00017831,2]
[382462387,1756635324993,564.28429783,0.00017831,2]
[382462388,1756635325022,500.0,0.00017831,2]
[382462389,1756635325050,458.08065903,0.00017831,2]
[382462390,1756635325070,41.91934097,0.00017831,2]
[382462391,1756635325095,519.67204885,0.00017831,2]
[382462392,1756635325124,500.0,0.00017831,2]
[382462393,1756635325160,500.0,0.00017831,2]
[382462394,1756635325213,335.33834009,0.00017831,2]
[382462395,1756635325274,500.0,0.00017831,2]
[382462396,1756635325331,500.0,0.00017831,2]
[382462397,1756635325394,500.0,0.00017831,2]
[382462398,1756635325420,500.0,0.00017831,2]
[382462399,1756635325447,500.0,0.00017831,2]
[382462400,1756635325474,500.0,0.00017831,2]
[382462401,1756635325515,500.0,0.00017831,2]
[382462402,1756635325543,500.0,0.00017831,2]
[382462403,1756635325578,525.0,0.00017831,2]
[382462404,1756635325614,297.97803434,0.00017831,2]
[382462405,1756635325665,500.0,0.00017831,2]
[382462406,1756635325714,461.51602756,0.00017831,2]
[382462407,1756635325742,500.0,0.00017831,2]
[382462408,1756635325773,500.0,0.00017831,2]
[382462409,1756635325807,500.0,0.00017831,2]
[382462410,1756635327170,818.58620819,0.00017832,2]
[382462411,1756635327194,4181.41379181,0.00017832,2]
[382462412,1756635330709,151.15227594,0.00017291,2]
[382462413,1756635333184,1589.19,0.00017822,3]
[382462414,1756635334413,1495.73837544,0.0001783,2]
[382462415,1756635335139,2582.51555681,0.00017832,2]
[382462416,1756635335162,2417.48444319,0.00017832,2]
[382462417,1756635340130,1068.86895677,0.00017297,2]
[382462418,1756635340627,534.43447839,0.00017393,2]
[382462419,1756635342239,499.99999999,0.00017831,2]
[382462420,1756635344230,794.59,0.00017822,3]
[382462421,1756635350445,4684.63212166,0.00017832,2]
[382462422,1756635350468,315.36787834,0.00017832,2]
[382462423,1756635354872,397.3,0.00017822,3]
[382462424,1756635358386,5000.0,0.00017832,2]
[382462425,1756635359659,167.40560725,0.0001783,2]
[382462426,1756635364579,300.0,0.00017831,2]
[382462427,1756635366603,198.65,0.00017822,3]
[382462428,1756635366644,3621.28651441,0.00017832,2]
[382462429,1756635366667,1378.71348559,0.00017832,2]
[382462430,1756635372026,475.01380472,0.0001783,2]
[382462431,1756635374581,5000.0,0.00017832,2]
[382462432,1756635382527,5000.0,0.000175,2]
[382462433,1756635383153,-595.95,0.00017822,3]
[382462434,1756635384866,-5533.28323932,0.00017832,2]
[382462435,1756635390647,4856.60907348,0.000175,2]
[382462436,1756635393397,-200.0,0.00017832,10]
[382462437,1756635393428,-200.0,0.00017832,10]
[382462438,1756635393458,-200.0,0.00017832,10]
[382462439,1756635393486,-200.0,0.00017832,10]
[382462440,1756635393513,-200.0,0.00017832,10]
[382462441,1756635393542,-200.0,0.00017832,10]
[382462442,1756635393570,-200.0,0.00017832,10]
[382462443,1756635393598,-200.0,0.00017832,10]
[382462444,1756635393627,200.0,0.00017832,10]
[382462445,1756635393728,200.0,0.00017832,10]
[382462446,1756635393905,204.793562,0.00017832,10]
[382462447,1756635396973,151.0,0.000175,2]
[382462448,1756635399064,1878.54834746,0.00017832,2]
[382462449,1756635407186,4165.66809054,0.00017832,2]
[382462450,1756635407208,834.33190946,0.00017832,2]
[382462451,1756635410099,1207.77594436,0.00017752,2]
[382462452,1756635413234,-1157.89214618,0.00017832,2]
[382462453,1756635413296,-10000.01,0.00017832,2]
[382462454,1756635413492,-10000.01,0.00017832,2]
[382462455,1756635413634,-10000.01,0.00017832,2]
[382462456,1756635413785,-10000.01,0.00017832,2]
[382462457,1756635413882,-10000.01,0.00017832,2]
[382462458,1756635414011,-10000.01,0.00017832,2]
[382462459,1756635418061,-160.0,0.00017832,2]
[382462460,1756635418095,-9680.01,0.00017832,2]
[382462461,1756635418152,-10000.01,0.00017832,2]
[382462462,1756635418355,-10000.01,0.00017832,2]
[382462463,1756635418385,2680.04,0.00017822,3]
[382462464,1756635422539,3306.597543,0.00016923,2]
[382462465,1756635423164,-300.0,0.00017831,2]
[382462466,1756635423951,267.8607499,0.00016923,2]
[382462467,1756635429009,1340.02,0.00017822,3]
[382462468,1756635430562,5000.0,0.00017832,2]
[382462469,1756635432654,2792.1292501,0.00016923,2]
[382462470,1756635432677,10000.01,0.00016923,2]
[382462471,1756635432700,10000.01,0.00016923,2]
[382462472,1756635432723,10000.01,0.00016923,2]
[382462473,1756635432754,10000.01,0.00016923,2]
[382462474,1756635432776,10000.01,0.00016923,2]
[382462475,1756635432799,10000.01,0.00016923,2]
[382462476,1756635432821,10000.01,0.00016923,2]
[382462477,1756635432843,7801.1245166,0.00016923,2]
[382462478,1756635434299,-118.8454834,0.00017832,2]
[382462479,1756635434449,-10000.01,0.00017832,2]
[382462480,1756635439618,670.01,0.00017822,3]
[382462481,1756635450235,335.01,0.00017822,3]
[382462482,1756635454564,5000.0,0.00017832,2]
[382462483,1756635461366,167.5,0.00017822,3]
[382462484,1756635463770,167.40560725,0.00017752,2]
[382462485,1756635472006,1814.61,0.00017822,3]
[382462486,1756635477121,200.0,0.000178,2]
[382462487,1756635477760,2315.48439275,0.00017832,2]
[382462488,1756635477784,2684.51560725,0.00017832,2]
[382462489,1756635479801,500.0,0.00017831,2]
[382462490,1756635480168,197.46316217,0.00017831,2]
[382462491,1756635480211,445.717767,0.00013699,2]
[382462492,1756635481702,373.51163127,0.00017831,2]
[382462493,1756635481731,500.0,0.00017831,2]
[382462494,1756635481764,500.0,0.00017831,2]
[382462495,1756635482643,907.31,0.00017822,3]
[382462496,1756635482767,300.0,0.00017831,2]
[382462497,1756635491383,500.0,0.00017831,2]
[382462498,1756635493489,453.65,0.00017822,3]
[382462499,1756635499472,500.0,0.00017831,2]
[382462500,1756635499555,500.0,0.00017831,2]
[382462501,1756635504101,226.83,0.00017822,3]
[382462502,1756635514982,680.51,0.00017822,3]
[382462503,1756635525633,480.0,0.00017831,2]
[382462504,1756635541276,250.50183231,0.00017831,2]
[382462505,1756635541309,229.49816769,0.00017831,2]
[382462506,1756635542849,300.0,0.00017831,2]
[382462507,1756635568786,480.0,0.00017831,2]
[382462508,1756635581935,700.43571502,0.00017832,2]
[382462509,1756635582142,480.0,0.00017831,2]
[382462510,1756635594645,7810.07611729,0.0001783,2]
[382462511,1756635594668,6994.61788819,0.0001783,2]
[382462512,1756635602978,300.0,0.00017831,2]
[382462513,1756635603007,300.0,0.00017831,2]
[382462514,1756635603134,300.0,0.00017831,2]
[382462515,1756635603187,300.0,0.00017831,2]
[382462516,1756635604827,-1135.38211181,0.00017832,2]
[382462517,1756635604856,-10000.01,0.00017832,2]
[382462518,1756635604920,-10000.01,0.00017832,2]
[382462519,1756635605031,-10000.01,0.00017832,2]
[382462520,1756635605071,-10000.01,0.00017832,2]
[382462521,1756635605104,-10000.01,0.00017832,2]
[382462522,1756635605459,-10000.01,0.00017832,2]
[382462523,1756635606557,151.0,0.00017821,2]
[382462524,1756635607225,290.36817885,0.00017821,2]
[382462526,1756635610797,238.5181711,0.00017821,2]
[382462527,1756635613492,-151.0,0.00017821,2]
[382462528,1756635613521,-500.0,0.00017821,2]
[382462529,1756635613910,151.0,0.00017821,2]
[382462530,1756635613972,500.0,0.00017821,2]
[382462531,1756635615150,500.0,0.00017821,2]
[382462532,1756635615450,2225.79113465,0.00017752,2]
[382462533,1756635615602,480.0,0.00017831,2]
[382462534,1756635617264,151.0,0.00017821,2]
[382462535,1756635617941,151.0,0.00017821,2]
[382462536,1756635618364,500.0,0.00017821,2]
[382462537,1756635618569,500.0,0.00017821,2]
[382462538,1756635618601,151.0,0.00017821,2]
[382462539,1756635619204,463.65494024,0.00017821,2]
[382462540,1756635619237,500.0,0.00017821,2]
[382462541,1756635619284,151.0,0.00017821,2]
[382462542,1756635619859,500.0,0.00017821,2]
[382462543,1756635619972,151.0,0.00017821,2]
[382462544,1756635620245,209.40437684,0.00017821,2]
[382462545,1756635620368,1413.15954827,0.00017832,2]
[382462546,1756635620396,3586.84045173,0.00017832,2]
[382462547,1756635620463,480.0,0.00017831,2]
[382462548,1756635620571,500.0,0.00017821,2]
[382462549,1756635620738,151.0,0.00017821,2]
[382462550,1756635621174,500.0,0.00017821,2]
[382462551,1756635621444,151.0,0.00017821,2]
[382462552,1756635621799,500.0,0.00017821,2]
[382462553,1756635622101,153.53599924,0.00017821,2]
[382462554,1756635623035,500.0,0.00017821,2]
[382462555,1756635623737,500.0,0.00017821,2]
[382462556,1756635623888,2618.2481025,0.00017821,2]
[382462557,1756635624392,359.38544653,0.00017821,2]
[382462558,1756635624417,140.61455347,0.00017821,2]
[382462559,1756635625048,500.0,0.00017821,2]
[382462560,1756635625705,500.0,0.00017821,2]
[382462561,1756635628247,8859.39544653,0.00016902,2]
[382462562,1756635628268,1505.90888987,0.00016902,2]
[382462563,1756635628377,5000.0,0.00017832,2]
[382462564,1756635636354,151.0,0.00017821,2]
[382462565,1756635636453,3343.10111013,0.00017832,2]
[382462566,1756635636477,1656.89888987,0.00017832,2]
[382462567,1756635636959,151.0,0.00017821,2]
[382462568,1756635637625,151.0,0.00017821,2]
[382462569,1756635638191,250.0,0.00017821,2]
[382462570,1756635638262,151.0,0.00017821,2]
[382462571,1756635638995,250.0,0.00017821,2]
[382462572,1756635639031,151.0,0.00017821,2]
[382462573,1756635639650,250.0,0.00017821,2]
[382462574,1756635639708,151.0,0.00017821,2]